bitfinex/quotes_SOLUSD_20251006
["timestamp","ask_amount","ask_price","bid_price","bid_amount"]
[1759714002024,0.66,230.72,230.69,2.86161308]
[1759714002242,4.99444584,230.71,230.7,2.86161308]
[1759714002444,36.51444584,230.71,230.7,2.86161308]
[1759714003150,32.18,230.71,230.7,2.86161308]
[1759714003349,10.83463516,230.75,230.7,2.86161308]
[1759714003350,0.66,230.75,230.7,2.86161308]
[1759714003647,0.66,230.74,230.66,5.01520618]
[1759714003856,32.18,230.74,230.69,5.0273877]
[1759714004033,0.66,230.73,230.7,2.86101923]
[1759714004230,31.52,230.74,230.69,5.0273877]
[1759714004451,31.52,230.73,230.7,2.86135178]
[1759714004753,31.52,230.73,230.69,5.7073877]
[1759714004948,31.52,230.73,230.7,2.86186798]
[1759714005134,31.52,230.73,230.69,5.0273877]
[1759714005325,31.52,230.73,230.7,2.86187006]
[1759714005644,31.5,230.72,230.71,7.88910436]
[1759714005946,5.0273877,230.8,230.71,7.88910436]
[1759714005947,0.66,230.79,230.71,8.56910436]
[1759714006133,32.16,230.78,230.72,2.86171666]
[1759714006336,32.16,230.77,230.73,7.88910436]
[1759714006537,32.16,230.77,230.73,5.0273877]
[1759714006939,36.49334162,230.77,230.73,5.0273877]
[1759714007159,0.66,230.76,230.73,5.0273877]
[1759714007831,31.48,230.75,230.73,5.0273877]
[1759714008226,31.48,230.74,230.73,5.0273877]
[1759714008951,4.99352403,230.76,230.73,5.0273877]
[1759714009452,31.46,230.75,230.73,5.0273877]
[1759714010145,0.72,230.76,230.73,5.0273877]
[1759714010328,31.44,230.75,230.7,0.68]
[1759714010651,31.44,230.75,230.72,5.0273877]
[1759714010955,32.16,230.75,230.72,5.0273877]
[1759714011254,31.44,230.75,230.72,5.0273877]
[1759714011826,31.44,230.75,230.74,5.0273877]
[1759714012052,4.33332421,230.77,230.74,5.0273877]
[1759714012232,31.44,230.75,230.74,5.0273877]
[1759714013035,4.33332421,230.77,230.74,5.0273877]
[1759714013236,31.42,230.76,230.74,5.0273877]
[1759714013462,0.72,230.76,230.74,5.0273877]
[1759714013829,31.4,230.75,230.7,5.03462646]
[1759714014031,31.4,230.75,230.74,5.0273877]
[1759714014548,5.05359806,230.76,230.74,5.0273877]
[1759714014745,0.72,230.76,230.7,0.7]
[1759714014948,31.4,230.75,230.73,5.0273877]
[1759714015454,31.4,230.74,230.73,5.0273877]
[1759714016257,32.12,230.74,230.73,5.0273877]
[1759714016457,31.4,230.74,230.71,5.0273877]
[1759714016642,4.33349724,230.77,230.73,5.0273877]
[1759714016843,32.12,230.76,230.73,5.0273877]
[1759714017041,31.4,230.76,230.73,5.0273877]
[1759714017338,0.72,230.75,230.71,5.0273877]
[1759714017649,5.05388229,230.74,230.71,5.0273877]
[1759714017857,0.72,230.75,230.71,5.0273877]
[1759714018158,35.73353741,230.76,230.72,2.86176424]
[1759714018365,0.72,230.75,230.71,5.0273877]
[1759714018670,0.72,230.75,230.72,2.86229831]
[1759714018835,32.08,230.74,230.68,5.03494964]
[1759714019038,32.08,230.74,230.72,3.27837025]
[1759714019252,4.33373635,230.75,230.72,3.27837025]
[1759714019465,31.36,230.73,230.72,3.27837025]
[1759714019634,31.36,230.73,230.72,6.14090167]
[1759714020351,32.08,230.73,230.7,3.27837025]
[1759714020538,0.72,230.72,230.71,2.86290258]
[1759714020941,5.05335244,230.77,230.71,2.86290258]
[1759714021138,5.05335244,230.77,230.69,0.7]
[1759714021139,31.34,230.76,230.74,3.27837025]
[1759714021344,32.06,230.76,230.74,3.27837025]
[1759714021756,31.32,230.75,230.74,3.27837025]
[1759714021935,5.05317138,230.78,230.74,3.27837025]
[1759714022142,31.32,230.77,230.74,3.27837025]
[1759714022336,0.72,230.82,230.76,3.27837025]
[1759714022559,31.32,230.81,230.79,3.27837025]
[1759714022862,0.72,230.8,230.79,3.27837025]
[1759714023163,31.32,230.8,230.79,3.27837025]
[1759714023364,32.04,230.8,230.7,10.87647521]
[1759714023660,0.72,230.79,230.73,3.27837025]
[1759714023868,0.72,230.78,230.71,3.27837025]
[1759714024046,46.48466734,230.8,230.71,3.27837025]
[1759714024047,0.72,230.77,230.72,2.8599204]
[1759714024250,32.04,230.76,230.71,3.27837025]
[1759714024436,32.04,230.76,230.72,2.86028099]
[1759714024780,31.34,230.75,230.73,2.86001406]
[1759714024961,0.72,230.74,230.69,3.27837025]
[1759714025133,31.34,230.75,230.7,2.86066126]
[1759714025134,0.72,230.73,230.7,2.86066126]
[1759714025337,10.83188908,230.8,230.71,4.92484905]
[1759714025536,33.6980713,230.86,230.71,4.92484905]
[1759714025537,31.34,230.79,230.76,1.36418779]
[1759714025754,31.34,230.78,230.76,1.36418779]
[1759714025951,31.34,230.78,230.72,0.7]
[1759714026153,0.72,230.77,230.73,2.86016159]
[1759714026367,0.72,230.77,230.7,10.87647521]
[1759714026546,0.72,230.77,230.73,1.36418779]
[1759714027061,31.34,230.78,230.74,2.86094003]
[1759714027251,32.06,230.78,230.73,1.36418779]
[1759714027561,36.39316275,230.78,230.74,2.86094792]
[1759714027863,31.34,230.77,230.73,1.36418779]
[1759714028162,4.33181719,230.85,230.75,1.36418779]
[1759714028347,0.72,230.84,230.77,1.36418779]
[1759714028547,0.72,230.83,230.77,1.36418779]
[1759714028737,0.72,230.82,230.77,1.36418779]
[1759714028941,0.72,230.84,230.79,1.36418779]
[1759714029144,31.34,230.83,230.79,1.36418779]
[1759714029456,31.34,230.82,230.79,1.36418779]
[1759714029971,31.34,230.82,230.73,10.87647521]
[1759714030161,0.72,230.81,230.78,1.36418779]
[1759714031166,31.38,230.8,230.78,1.36418779]
[1759714031462,15.67821227,230.99,230.79,14.43668512]
[1759714031666,0.72,230.9,230.84,1.36418779]
[1759714031842,32.2,230.89,230.84,1.36418779]
[1759714032165,0.72,230.88,230.84,1.36418779]
[1759714032351,32.2,230.88,230.84,1.36418779]
[1759714033152,31.48,230.87,230.84,1.36418779]
[1759714033361,0.72,230.88,230.84,1.36418779]
[1759714033743,0.72,230.92,230.86,1.36418779]
[1759714033957,31.46,230.91,230.86,1.36418779]
[1759714034160,32.18,230.91,230.86,1.36418779]
[1759714034443,15.15322795,230.98,230.9,1.36418779]
[1759714034646,15.15322795,230.98,230.86,10.87647521]
[1759714034647,15.15322795,230.98,230.92,1.36418779]
[1759714034842,32.22,230.97,230.92,1.36418779]
[1759714035044,4.32994154,230.95,230.9,1.36418779]
[1759714035260,0.72,230.94,230.9,1.36418779]
[1759714035844,0.72,230.93,230.88,1.36418779]
[1759714036272,0.72,230.92,230.85,11.57647521]
[1759714036447,0.72,230.92,230.88,1.36418779]
[1759714037051,5.05069161,230.91,230.86,1.36418779]
[1759714037460,4.33069161,230.91,230.86,1.36418779]
[1759714037747,4.99069161,230.91,230.86,1.36418779]
[1759714038349,35.79069161,230.91,230.86,1.36418779]
[1759714038548,35.79069161,230.91,230.81,4.32994154]
[1759714038549,0.66,230.9,230.81,5.03994154]
[1759714038878,0.66,230.9,230.82,2.84883378]
[1759714038879,0.66,230.89,230.82,2.84883378]
[1759714039060,0.66,230.88,230.82,2.84883378]
[1759714039268,31.46,230.87,230.81,1.36418779]
[1759714039456,0.66,230.88,230.83,1.36418779]
[1759714039763,32.12,230.87,230.78,20.8]
[1759714039967,32.12,230.87,230.81,1.36418779]
[1759714040169,32.12,230.87,230.8,11.58647521]
[1759714040375,0.66,230.87,230.82,1.36418779]
[1759714040559,32.12,230.86,230.82,1.36418779]
[1759714041176,35.79181582,230.86,230.82,1.36418779]
[1759714041377,0.66,230.85,230.8,1.36418779]
[1759714041576,0.66,230.84,230.81,2.85103902]
[1759714041874,35.79181582,230.86,230.81,2.85103902]
[1759714042070,0.66,230.85,230.81,2.85103902]
[1759714042674,4.99190331,230.85,230.81,2.85103902]
[1759714043253,0.66,230.91,230.84,1.36418779]
[1759714043453,0.66,230.9,230.84,1.36418779]
[1759714044558,0.66,230.89,230.81,10.87647521]
[1759714044763,0.66,230.89,230.84,1.36418779]
[1759714044958,31.42,230.88,230.84,1.36418779]
[1759714045177,32.08,230.88,230.81,10.87647521]
[1759714045374,32.08,230.88,230.85,1.36418779]
[1759714045673,10.82704336,230.91,230.85,1.36418779]
[1759714045674,32.06,230.93,230.87,1.36418779]
[1759714045851,31.4,230.92,230.89,1.36418779]
[1759714046052,32.06,230.92,230.89,1.36418779]
[1759714046247,0.66,230.92,230.89,1.36418779]
[1759714046453,31.4,230.91,230.89,1.36418779]
[1759714046663,0.66,230.9,230.87,1.36418779]
[1759714047077,0.66,230.9,230.84,10.87647521]
[1759714047266,0.66,230.9,230.87,1.36418779]
[1759714047575,4.33075658,230.91,230.87,1.36418779]
[1759714047871,0.66,230.95,230.89,1.36418779]
[1759714048062,31.38,230.94,230.92,1.36418779]
[1759714048271,31.38,230.94,230.9,1.36418779]
[1759714048573,0.66,230.98,230.92,1.36418779]
[1759714048765,4.9895254,230.98,230.94,1.36418779]
[1759714048966,0.66,230.97,230.94,1.36418779]
[1759714049276,0.66,230.96,230.94,1.36418779]
[1759714049584,4.3295254,230.98,230.92,1.36418779]
[1759714049585,0.66,230.95,230.92,1.36418779]
[1759714049760,32.04,230.94,230.86,1.36418779]
[1759714049962,32.04,230.93,230.87,1.36418779]
[1759714050166,31.38,230.92,230.85,0.71]
[1759714050359,31.38,230.92,230.88,1.36418779]
[1759714050559,0.66,230.96,230.9,1.36418779]
[1759714050762,4.3295254,230.98,230.94,1.36418779]
[1759714050957,35.7295254,230.98,230.9,0.71]
[1759714051381,35.7295254,230.98,230.93,1.36418779]
[1759714051564,36.3895254,230.98,230.93,1.36418779]
[1759714051881,0.66,230.97,230.93,1.36418779]
[1759714052058,0.66,230.97,230.91,1.36418779]
[1759714052263,31.4,230.96,230.91,1.36418779]
[1759714052962,0.66,230.95,230.89,1.36418779]
[1759714053175,31.38,230.96,230.9,10.87647521]
[1759714053574,0.72,230.95,230.86,1.36418779]
[1759714053760,0.72,230.94,230.87,10.87647521]
[1759714054085,0.72,230.93,230.87,10.87647521]
[1759714054984,5.05046991,230.93,230.87,10.87647521]
[1759714055180,5.05046991,230.93,230.86,10.87647521]
[1759714056071,2.08418779,230.92,230.83,20.8]
[1759714056270,31.36,230.91,230.85,10.87647521]
[1759714056472,31.36,230.9,230.86,2.04418779]
[1759714056984,0.72,230.89,230.84,12.240663]
[1759714057277,0.72,230.88,230.82,20.8]
[1759714057480,31.36,230.87,230.8,10.87647521]
[1759714057666,32.08,230.87,230.8,10.87647521]
[1759714058476,36.41158718,230.87,230.8,10.87647521]
[1759714058674,36.41158718,230.87,230.79,2.04418779]
[1759714059071,0.72,230.86,230.79,10.87647521]
[1759714059289,35.69158718,230.87,230.79,10.87647521]
[1759714059290,0.72,230.85,230.79,10.87647521]
[1759714059468,32.08,230.85,230.78,10.87647521]
[1759714059671,32.08,230.85,230.79,2.84594598]
[1759714059885,32.08,230.85,230.78,10.87647521]
[1759714060659,36.41191493,230.85,230.78,10.87647521]
[1759714061289,2.08418779,230.84,230.76,0.68]
[1759714061463,2.08418779,230.84,230.77,13.72424865]
[1759714061663,0.72,230.83,230.76,10.87647521]
[1759714062073,46.52145792,230.85,230.73,10.87647521]
[1759714062074,2.08418779,230.82,230.73,10.87647521]
[1759714062290,0.72,230.81,230.72,0.68]
[1759714062588,32.70418779,230.8,230.73,23.64949579]
[1759714062886,10.82944093,230.86,230.74,10.87647521]
[1759714063072,0.72,230.85,230.76,12.240663]
[1759714063271,31.34,230.84,230.77,3.52854991]
[1759714063478,31.34,230.84,230.78,12.240663]
[1759714064078,0.72,230.83,230.73,12.240663]
[1759714064281,31.34,230.82,230.74,15.7700695]
[1759714064584,0.72,230.83,230.76,10.87647521]
[1759714064770,2.08418779,230.86,230.78,10.87647521]
[1759714064965,36.451868,230.85,230.76,10.87647521]
[1759714065191,0.72,230.84,230.77,2.84961929]
[1759714065390,0.72,230.83,230.76,10.87647521]
[1759714065686,1.36418779,230.82,230.77,2.84984112]
[1759714065878,0.72,230.82,230.77,2.84984112]
[1759714066088,5.051868,230.85,230.77,3.52984112]
[1759714066379,31.4,230.84,230.78,2.84984112]
[1759714066579,31.4,230.84,230.77,0.68]
[1759714066779,32.76418779,230.84,230.77,0.68]
[1759714066976,0.72,230.83,230.76,12.240663]
[1759714067187,32.76418779,230.84,230.76,12.240663]
[1759714067188,32.1,230.82,230.77,2.85139767]
[1759714067568,32.1,230.82,230.76,10.87647521]
[1759714067569,0.72,230.81,230.74,0.68]
[1759714067769,0.72,230.81,230.75,13.72875314]
[1759714067971,0.72,230.81,230.69,13.51881606]
[1759714067972,1.36418779,230.76,230.69,3.58497217]
[1759714068171,1.36418779,230.76,230.61,8.01190449]
[1759714068172,1.36418779,230.72,230.7,2.85192578]
[1759714068371,16.60784467,230.81,230.63,0.71]
[1759714068372,27.15863363,230.71,230.63,0.71]
[1759714068592,27.15863363,230.71,230.56,13.01744337]
[1759714068593,31.6,230.7,230.64,0.71]
[1759714068987,26.49863363,230.71,230.64,0.71]
[1759714069176,31.6,230.7,230.64,0.71]
[1759714069584,1.36418779,230.69,230.6,1.36418779]
[1759714069793,1.36418779,230.69,230.64,0.71]
[1759714069794,31.6,230.69,230.64,0.71]
[1759714069997,31.6,230.69,230.65,0.71]
[1759714070301,31.6,230.69,230.66,0.71]
[1759714071590,7.6152525,230.72,230.66,0.71]
[1759714071900,31.58,230.71,230.66,0.71]
[1759714072505,0.66,230.77,230.68,3.28090615]
[1759714072682,31.58,230.76,230.69,0.71]
[1759714072874,0.66,230.77,230.69,0.71]
[1759714072875,31.58,230.75,230.69,0.71]
[1759714073691,31.58,230.74,230.67,0.71]
[1759714073897,31.58,230.74,230.68,3.28090615]
[1759714075375,31.58,230.74,230.69,4.33482162]
[1759714075578,0.66,230.76,230.69,5.04482162]
[1759714075898,31.54,230.75,230.72,3.28090615]
[1759714076202,31.54,230.76,230.72,3.99090615]
[1759714076606,0.66,230.75,230.72,3.28090615]
[1759714076782,31.54,230.76,230.7,3.28090615]
[1759714077184,31.54,230.75,230.7,3.28090615]
[1759714077493,32.2,230.75,230.69,3.28090615]
[1759714077991,0.66,230.74,230.68,3.28090615]
[1759714079002,32.18,230.74,230.67,5.0450596]
[1759714079200,32.18,230.74,230.68,3.28090615]
[1759714079507,32.18,230.74,230.68,0.5]
[1759714079709,0.66,230.74,230.68,3.78090615]
[1759714080000,32.16,230.74,230.68,0.5]
[1759714080685,32.16,230.74,230.69,3.28090615]
[1759714080907,35.83389272,230.74,230.68,0.5]
[1759714081202,35.83389272,230.74,230.65,15.21186221]
[1759714081203,5.02615559,230.72,230.65,10.87647521]
[1759714081407,0.66,230.71,230.65,10.87647521]
[1759714082708,0.66,230.73,230.66,0.71]
[1759714083202,32.14,230.73,230.66,5.73615559]
[1759714083999,0.66,230.72,230.64,10.87647521]
[1759714084182,32.12,230.72,230.65,5.73615559]
[1759714084689,32.12,230.72,230.66,0.5]
[1759714084690,5.68615559,230.71,230.66,0.5]
[1759714084891,5.02615559,230.69,230.6,5.02615559]
[1759714085101,0.66,230.68,230.6,5.02615559]
[1759714085682,0.66,230.68,230.61,0.71]
[1759714086896,5.68615559,230.68,230.61,5.04630968]
[1759714087408,0.66,230.67,230.61,4.33630968]
[1759714088289,0.66,230.67,230.6,5.73615559]
[1759714088490,5.02615559,230.68,230.61,0.71]
[1759714088901,0.66,230.69,230.61,0.71]
[1759714089217,0.66,230.73,230.63,10.87647521]
[1759714089391,31.42,230.72,230.68,5.02615559]
[1759714089829,0.66,230.75,230.68,5.02615559]
[1759714089830,31.44,230.71,230.68,5.02615559]
[1759714090010,0.66,230.75,230.68,5.02615559]
[1759714090182,35.77391944,230.74,230.68,5.02615559]
[1759714090386,0.66,230.73,230.67,5.02615559]
[1759714090598,0.66,230.72,230.63,5.73615559]
[1759714090815,0.66,230.71,230.63,5.73615559]
[1759714090983,0.66,230.71,230.63,0.71]
[1759714091187,31.44,230.7,230.63,2.84243474]
[1759714091409,0.66,230.69,230.61,2.13243474]
[1759714091708,0.66,230.68,230.61,2.13243474]
[1759714092006,33.57243474,230.7,230.62,0.71]
[1759714092007,0.66,230.69,230.62,0.71]
[1759714093417,7.12740501,230.69,230.62,0.71]
[1759714093813,31.4,230.68,230.61,2.13243474]
[1759714093993,0.66,230.67,230.61,2.13243474]
[1759714094193,0.66,230.67,230.61,7.17873006]
[1759714094435,31.4,230.68,230.57,21.7191694]
[1759714094722,7.12740501,230.69,230.61,0.71]
[1759714094928,31.4,230.68,230.61,0.71]
[1759714095309,31.4,230.68,230.62,2.13243474]
[1759714095619,35.735015,230.68,230.62,2.13243474]
[1759714095818,0.66,230.69,230.61,7.17858257]
[1759714096122,32.04,230.68,230.61,7.17858257]
[1759714096708,0.66,230.68,230.61,7.17858257]
[1759714096913,31.38,230.67,230.61,7.17858257]
[1759714097301,0.66,230.66,230.59,2.13243474]
[1759714097606,0.67,230.65,230.57,2.84243474]
[1759714097803,0.67,230.64,230.57,2.84243474]
[1759714098026,0.67,230.64,230.57,5.04706965]
[1759714098201,2.80243474,230.64,230.57,0.71]
[1759714099200,4.33594935,230.63,230.56,2.13243474]
[1759714099427,0.67,230.62,230.56,2.13243474]
[1759714099730,31.36,230.61,230.56,2.13243474]
[1759714100020,31.36,230.61,230.57,0.69]
[1759714100201,0.67,230.64,230.57,0.69]
[1759714100396,31.34,230.63,230.58,2.82243474]
[1759714100800,31.34,230.63,230.57,2.13243474]
[1759714101023,32.01,230.63,230.57,2.13243474]
[1759714101517,32.01,230.63,230.57,6.46950823]
[1759714102102,2.80243474,230.66,230.58,0.69]
[1759714102307,2.80243474,230.66,230.61,2.13243474]
[1759714102308,31.34,230.65,230.61,2.13243474]
[1759714102511,31.34,230.65,230.57,4.33707349]
[1759714102719,31.34,230.65,230.58,10.87647521]
[1759714102923,31.34,230.65,230.61,2.13243474]
[1759714103228,32.01,230.65,230.58,10.87647521]
[1759714103429,0.67,230.65,230.61,2.13243474]
[1759714104126,0.67,230.64,230.59,2.13243474]
[1759714104317,0.67,230.63,230.59,2.13243474]
[1759714104520,0.67,230.62,230.59,2.13243474]
[1759714106423,35.65578891,230.64,230.59,2.13243474]
[1759714106609,0.67,230.63,230.59,2.13243474]
[1759714107520,10.83667402,230.7,230.59,6.46906787]
[1759714107718,0.67,230.66,230.6,0.69]
[1759714108026,0.67,230.66,230.6,2.13243474]
[1759714108225,31.28,230.65,230.58,26.05540636]
[1759714108427,31.28,230.65,230.59,2.13243474]
[1759714108818,31.28,230.65,230.58,26.74540636]
[1759714109022,0.67,230.66,230.6,2.13243474]
[1759714109219,31.28,230.65,230.6,2.13243474]
[1759714109419,0.67,230.64,230.6,2.13243474]
[1759714110245,0.67,230.64,230.6,6.46893488]
[1759714111337,35.61566152,230.65,230.59,2.13243474]
[1759714111532,31.28,230.65,230.59,2.13243474]
[1759714111833,0.67,230.69,230.61,2.13243474]
[1759714112132,10.83542931,230.73,230.6,0.69]
[1759714112133,0.67,230.73,230.68,2.13243474]
[1759714112365,13.11103456,230.81,230.68,2.13243474]
[1759714112366,10.83308942,230.78,230.68,2.13243474]
[1759714112513,0.67,230.75,230.7,2.13243474]
[1759714112833,31.95,230.75,230.7,2.13243474]
[1759714113043,0.67,230.75,230.7,2.13243474]
[1759714113220,0.69,230.74,230.7,2.13243474]
[1759714113426,0.69,230.73,230.66,0.71]
[1759714113739,0.69,230.73,230.68,2.13243474]
[1759714114035,0.69,230.72,230.68,2.13243474]
[1759714114646,0.69,230.71,230.66,2.13243474]
[1759714114836,6.46654507,230.73,230.54,20.0]
[1759714114837,0.69,230.7,230.62,3.58497217]
[1759714115010,17.30172038,230.73,230.61,4.33632539]
[1759714115011,0.69,230.69,230.61,4.33632539]
[1759714115209,0.69,230.69,230.62,2.13243474]
[1759714115614,31.97,230.68,230.6,10.87647521]
[1759714115835,0.69,230.67,230.61,2.13243474]
[1759714116133,0.69,230.67,230.61,6.46872443]
[1759714116516,31.28,230.68,230.62,0.71]
[1759714116710,4.33482218,230.69,230.62,0.71]
[1759714116916,35.61482218,230.69,230.62,0.71]
[1759714117338,36.30482218,230.69,230.62,0.71]
[1759714117647,36.30482218,230.69,230.63,4.33594935]
[1759714118135,35.61482218,230.69,230.61,6.46858133]
[1759714118332,0.69,230.68,230.61,6.46858133]
[1759714118741,0.69,230.67,230.61,4.33614659]
[1759714119414,31.97,230.67,230.62,2.13243474]
[1759714119610,31.97,230.67,230.62,6.46849963]
[1759714120038,0.69,230.66,230.6,18.05524031]
[1759714120742,0.69,230.81,230.7,10.87647521]
[1759714121037,0.69,230.8,230.71,2.84243474]
[1759714121252,2.13243474,230.81,230.7,10.87647521]
[1759714121253,0.69,230.79,230.7,10.87647521]
[1759714121556,0.69,230.79,230.71,2.13243474]
[1759714121726,5.02295373,230.79,230.72,4.33425797]
[1759714122452,25.13237993,230.83,230.73,2.13243474]
[1759714122630,5.02218222,230.84,230.77,2.13243474]
[1759714122944,5.02218222,230.84,230.74,11.58647521]
[1759714123237,0.69,230.84,230.78,2.13243474]
[1759714123541,32.07,230.84,230.78,2.13243474]
[1759714123744,0.69,230.83,230.76,13.00890995]
[1759714124714,0.69,230.83,230.76,17.34240109]
[1759714124913,0.69,230.83,230.77,0.71]
[1759714124914,31.36,230.83,230.77,0.71]
[1759714125115,31.36,230.83,230.79,5.01955995]
[1759714125342,31.36,230.83,230.74,0.71]
[1759714125343,0.69,230.82,230.74,0.71]
[1759714125523,0.69,230.82,230.76,5.01955995]
[1759714126419,31.36,230.83,230.78,5.01955995]
[1759714126624,0.69,230.85,230.78,5.72955995]
[1759714126925,32.03,230.84,230.78,5.01955995]
[1759714127445,0.69,230.83,230.76,4.33343421]
[1759714127621,0.69,230.83,230.77,5.01955995]
[1759714128126,0.7,230.85,230.79,5.01955995]
[1759714128323,31.3,230.85,230.81,5.01955995]
[1759714128741,31.3,230.85,230.78,0.66]
[1759714128927,32.0,230.85,230.81,5.01955995]
[1759714129729,0.7,230.84,230.79,5.01955995]
[1759714130844,0.7,230.84,230.79,10.01249962]
[1759714131147,5.13148868,230.87,230.81,5.01955995]
[1759714131353,31.28,230.86,230.81,5.01955995]
[1759714131741,31.98,230.86,230.81,5.01955995]
[1759714132046,0.1,230.87,230.83,5.01955995]
[1759714132254,0.1,230.87,230.85,5.01955995]
[1759714133147,0.1,230.87,230.84,4.33200485]
[1759714133148,0.1,230.87,230.84,5.01955995]
[1759714134255,0.1,230.87,230.82,5.01955995]
[1759714134256,5.13144222,230.87,230.82,5.01955995]
[1759714134960,0.1,230.87,230.81,4.33255893]
[1759714135124,0.7,230.86,230.78,0.66]
[1759714135324,0.7,230.86,230.77,5.01955995]
[1759714135567,5.71955995,230.85,230.76,15.89603516]
[1759714135723,0.7,230.84,230.76,15.89603516]
[1759714135929,5.01955995,230.85,230.76,15.89603516]
[1759714135930,0.7,230.83,230.76,15.89603516]
[1759714136147,0.7,230.83,230.76,16.55603516]
[1759714136449,4.3323802,230.82,230.76,16.55603516]
[1759714137034,4.3323802,230.82,230.76,5.01955995]
[1759714137232,0.7,230.82,230.78,5.01955995]
[1759714137429,0.1,230.87,230.8,5.01955995]
[1759714137738,0.1,230.87,230.79,11.53647521]
[1759714137739,0.1,230.87,230.86,10.87647521]
[1759714138137,0.1,230.87,230.86,11.53647521]
[1759714138351,0.1,230.87,230.86,15.86810476]
[1759714138553,0.1,230.87,230.86,20.89767884]
[1759714139234,0.1,230.87,230.86,25.91723879]
[1759714139428,0.1,230.87,230.86,15.86810476]
[1759714139627,0.1,230.87,230.86,20.88766471]
[1759714139828,0.1,230.87,230.86,20.22766471]
[1759714140642,0.1,230.87,230.84,10.87647521]
[1759714140840,0.1,230.87,230.86,5.01955995]
[1759714141244,0.1,230.87,230.86,16.55603516]
[1759714142552,0.1,230.87,230.86,5.01955995]
[1759714143262,0.1,230.87,230.85,3.27471608]
[1759714144344,0.8,230.87,230.85,3.27471608]
[1759714144834,0.7,230.86,230.83,3.27471608]
[1759714145138,0.7,230.85,230.79,4.33294196]
[1759714145545,0.7,230.85,230.81,3.27471608]
[1759714146133,4.33163432,230.86,230.77,0.66]
[1759714146357,4.33163432,230.86,230.81,3.27471608]
[1759714146358,0.7,230.84,230.81,3.27471608]
[1759714146548,0.8,230.87,230.81,3.27471608]
[1759714146759,5.13146773,230.87,230.81,3.27471608]
[1759714147441,0.7,230.86,230.81,3.27471608]
[1759714147660,0.7,230.85,230.81,3.27471608]
[1759714147863,0.7,230.84,230.81,3.27471608]
[1759714148175,0.7,230.84,230.75,10.87647521]
[1759714148470,4.43146773,230.87,230.75,10.87647521]
[1759714148649,4.43146773,230.87,230.78,3.27471608]
[1759714148650,0.7,230.83,230.78,3.27471608]
[1759714148843,4.43146773,230.87,230.8,3.27471608]
[1759714149042,0.7,230.86,230.8,3.27471608]
[1759714149450,0.7,230.85,230.8,3.27471608]
[1759714149658,0.7,230.84,230.8,3.27471608]
[1759714149889,35.71146773,230.87,230.8,3.27471608]
[1759714150058,0.7,230.84,230.8,3.27471608]
[1759714150363,0.7,230.83,230.8,3.27471608]
[1759714150954,4.43146773,230.87,230.8,3.27471608]
[1759714151254,0.7,230.86,230.8,3.27471608]
[1759714151576,0.7,230.85,230.8,3.27471608]
[1759714151746,0.7,230.84,230.8,3.27471608]
[1759714152074,0.7,230.83,230.8,3.27471608]
[1759714152253,5.03173826,230.86,230.8,3.27471608]
[1759714152573,0.7,230.82,230.73,4.99407012]
[1759714152739,0.7,230.82,230.77,3.27471608]
[1759714153136,15.16081215,230.86,230.77,1.36304366]
[1759714153137,0.7,230.81,230.77,1.36304366]
[1759714153758,16.52385581,230.86,230.77,1.36304366]
[1759714153958,0.7,230.8,230.77,1.36304366]
[1759714154370,0.7,230.83,230.77,1.36304366]
[1759714155147,0.7,230.82,230.75,1.36304366]
[1759714155377,0.7,230.82,230.74,0.66]
[1759714155378,0.7,230.82,230.77,1.36304366]
[1759714155671,0.7,230.81,230.75,1.36304366]
[1759714155855,0.7,230.8,230.75,1.36304366]
[1759714156041,0.7,230.79,230.75,1.36304366]